Cogmind - Beta 16 @@@ ROGUE MODE // 2025.11.21 @ 22:59:45 Player: delto Result: Destroyed by D-53 Grenadier with Mini Grenade Launcher Performance ------------- Evolutions (0) 0 Regions Visited (2) 400 Robots Destroyed (4) 20 Value Destroyed (89) 89 Prototype IDs (0) 0 Alien Tech Used (0) 0 Bonus (0) 0 TOTAL SCORE: 509 Bonus ------- None Cogmind --------- Core Integrity 0/250 Matter 350/350 Energy 102/125 System Corruption 0% Temperature Cool (0) Movement Hovering (56) Location -10/Mines Parts ------- > --- POWER (1) -------- Light Ion Engine > --- PROPULSION (2) --- Hover Unit Hover Unit > --- UTILITY (2) ------ Small Matter Pod ECM Suite > --- WEAPON (2) ------- (None) > --- INVENTORY (5) ---- Hover Unit Hover Unit Hover Unit Hover Unit Peak State ------------ > --- POWER ------------ Light Ion Engine > --- PROPULSION ------- Hover Unit Hover Unit > --- UTILITY ---------- Improved Heat Sink ECM Suite > --- WEAPON ----------- Rocket Launcher > --- INVENTORY -------- Hover Unit Hover Unit Hover Unit Hover Unit [Rating: 9] Favorites ----------- Power Ion Engine Engine Ion Engine Propulsion Hover Unit Treads Light Treads Wheel Wheel Hover Unit Hover Unit Utility ECM Suite Device ECM Suite Storage Small Storage Unit Weapon Medium Laser Energy Gun Medium Laser Launcher Rocket Launcher Slashing Weapon Mining Claw Build | -11 -10 -10 ------- Run | Yrd Mat Min Slots Evolved . | . . . Power . | . . . Propulsion . | . . . Utility . | . . . Weapon . | . . . Parts Attached 15 | 7 4 4 Power 2 | 1 . 1 Engine 2 | 1 . 1 Core . | . . . Reactor . | . . . Propulsion 4 | 2 2 . Treads 1 | 1 . . Leg . | . . . Wheel 1 | 1 . . Hover 2 | . 2 . Flight . | . . . Utility 5 | 2 1 2 Device 3 | 1 1 1 Storage 2 | 1 . 1 Processor . | . . . Hackware . | . . . Protection . | . . . Artifact . | . . . Weapon 4 | 2 1 1 Energy Gun 2 | 2 . . Energy Cannon . | . . . Ballistic Gun . | . . . Ballistic Cannon . | . . . Launcher 1 | . . 1 Special Weapon . | . . . Impact Weapon . | . . . Slashing Weapon 1 | . 1 . Piercing Weapon . | . . . Special Melee Weapon . | . . . Unidentified Prototypes . | . . . Parts Lost 4 | . . 4 Power 1 | . . 1 Propulsion . | . . . Utility 2 | . . 2 Weapon 1 | . . 1 Highest Loss Streak 2 | . . 2 To Critical Strikes . | . . . Average Backups 4 | 2 4 4 Power . | . 1 . Propulsion 2 | . 2 4 Utility . | . . . Weapon . | . . . Tool/Special . | . . . Unused Backups 9 | . 5 4 Power 1 | . 1 . Propulsion 6 | . 2 4 Utility 1 | . 1 . Weapon 1 | . 1 . Tool/Special . | . . . Average Slot Usage (%) 89 | . 97 83 Engine 14 | . 14 14 Treads 2 | . 5 . Wheel 2 | . 5 . Hover 22 | . 15 28 Device 23 | . 25 22 Storage 1 | . 2 . Energy Gun 10 | . 17 4 Launcher 5 | . . 10 Slashing Weapon 6 | . 10 4 Peak Build Rating 9 | 7 7 9 Average Rating 6 | 4 6 6 On Entrance 4 | . 7 7 Avg Prop Armor Cover (%) 14 | 14 14 . Naked Turns . | . . . Heaviest Build 14 | 14 14 12 Greatest Support 20 | 20 12 12 Greatest Overweight (x) 3 | 1 3 . Average Overweight (x) . | . . . Largest Inventory Capacity 8 | 8 8 5 Average Capacity 5 | 6 5 5 Most Carried 6 | 5 6 5 Average Carried 4 | 2 4 4 Final Capacity 8 | 8 5 5 Final Carried 5 | 5 5 4 Class Distribution -------------------- 100% | Mutant Dominant Class ---------------- Mutant | -10/Materials Mutant | -10/Mines Resources | -11 -10 -10 ----------- Run | Yrd Mat Min Matter Collected 428 | 244 . 184 Remotely . | . . . Salvage Created 108 | 25 . 83 Parts 11 | 3 . 8 Haulers Intercepted . | . . . Recyclers Shooed . | . . . Parts Field Recycled . | . . . Retrieved Matter . | . . . Parts Self-Destructed . | . . . Prevented . | . . . Parts Restored . | . . . Kills | -11 -10 -10 ------- Run | Yrd Mat Min Combat Hostiles Destroyed 10 | . . 10 AOE 10 | . . 10 Classes Destroyed 4 | 1 . 3 Worker 1 | . . 1 Tunneler 1 | 1 . . Grunt 2 | . . 2 Assembled 8 | . . 8 Best Kill Streak 8 | 1 . 8 Combat Bots Only 8 | . . 8 Max Kills in Single Turn 6 | 1 . 6 Gunslinging . | . . . Exploded 6 | . . 6 Melee . | . . . Uniques/NPCs Destroyed . | . . . Combat | -11 -10 -10 -------- Run | Yrd Mat Min Hostile Shots Fired 31 | . 7 24 Missed 10 | . 3 7 Hits 21 | . 4 17 Melee 1 | . . 1 Projectile 20 | . 4 16 AOE 3 | . . 3 Damage Taken 463 | . 52 411 Core 254 | . 30 224 Absorbed by Shields . | . . . Core Remaining (%) 100 | 100 . . Volleys Fired 7 | 1 . 6 Largest 2 | 2 . 1 Hottest 90 | 90 . 33 Shots Fired 8 | 2 . 6 Gun 2 | 2 . . Cannon . | . . . Launcher 6 | . . 6 Special . | . . . Kinetic . | . . . Thermal 2 | 2 . . Explosive 6 | . . 6 Electromagnetic . | . . . Robot Hit Streak 3 | 1 . 3 Robot Miss Streak 3 | . . 3 Penetration Max . | . . . Secondary Targets . | . . . Shots Hit Robots 3 | 1 . 2 Core Hits 22 | 1 . 21 Critical Kills . | . . . Critical Parts Destroyed . | . . . Critical Strikes . | . . . Melee Attacks 6 | . 5 1 Impact . | . . . Slashing 6 | . 5 1 Piercing . | . . . Sneak Attacks . | . . . Combat Hostiles . | . . . Follow-up Attacks . | . . . Damage Inflicted 746 | 12 . 734 Guns 12 | 12 . . Cannons . | . . . Explosions 734 | . . 734 Melee . | . . . Ramming . | . . . Kinetic . | . . . Thermal 12 | 12 . . Explosive 734 | . . 734 Electromagnetic . | . . . Impact . | . . . Slashing . | . . . Piercing . | . . . Highest Corruption . | . . . Average Corruption . | . . . Corruption Purged . | . . . Corruption Blocked . | . . . Overload Shots . | . . . Overflow Damage 17 | . . 17 Projectiles . | . . . Explosions 17 | . . 17 Melee . | . . . Knockbacks . | . . . Impact . | . . . Kinetic . | . . . Secondary . | . . . Self-Inflicted Damage 77 | . . 77 Shots 3 | . . 3 Rammed . | . . . Targets Rammed . | . . . Kicked . | . . . Crushed . | . . . Highest Temperature 30 | 30 . 4 Average Temperature 14 | 17 . 4 Received Heat Transfer 48 | . 27 21 Siege Activations . | . . . Martial Activations . | . . . Shielding Activations . | . . . Robots Disrupted . | . . . Combat Hostiles . | . . . Robots Corrupted . | . . . Combat Hostiles . | . . . Parts Fried . | . . . Impact Corruptions . | . . . Robots Melted . | . . . Combat Hostiles . | . . . Parts Melted . | . . . Heat Transferred 37 | 37 . . Parts Sabotaged . | . . . Parts Stolen . | . . . Parts Stripped . | . . . Power Chain Reactions . | . . . Alert | -11 -10 -10 ------- Run | Yrd Mat Min Maximum Alert Level . | . . . Low Security (%) 100 | 100 100 100 Level 1 . | . . . Level 2 . | . . . Level 3 . | . . . Level 4 . | . . . Level 5 . | . . . High Security . | . . . Max Security . | . . . Peak Influence 71 | 5 1 71 Initial . | . . . Average 6 | . . 14 Influence Increases 112 | 5 1 106 Destroy 0b10 Robot/C 40 | . . 40 Destroy 0b10 Robot/NC 10 | 5 . 5 Destroy Leader 10 | . . 10 Destroy Structure 52 | . 1 51 Influence Decreases 81 | 5 1 75 Time Decay 42 | 5 1 36 Lost Part 39 | . . 39 Squads Dispatched . | . . . Investigation . | . . . Extermination . | . . . Reinforcement . | . . . Assault . | . . . Garrison . | . . . Intercept . | . . . Searches Triggered . | . . . Construction Impeded . | . . . Haulers Reinforced . | . . . Active Scanning Responses . | . . . Cargo Convoy Interrupts . | . . . Stealth | -11 -10 -10 --------- Run | Yrd Mat Min Distress Signals . | . . . Communications Jammed . | . . . Distress Signals . | . . . Times Spotted 37 | . 4 33 Peak Tracking Total 20 | . 4 20 Tactical Retreats 5 | . . 5 Traps | -11 -10 -10 ------- Run | Yrd Mat Min Traps Triggered . | . . . Indirectly . | . . . Trap Hack Attempts . | . . . Triggered . | . . . Disarmed . | . . . Reprogrammed . | . . . Reused . | . . . Traps Extracted . | . . . Installed . | . . . Triggered . | . . . Machines | -11 -10 -10 ---------- Run | Yrd Mat Min Machines Disabled . | . . . Max in Single Turn . | . . . Machines Repaired . | . . . Machines Dismantled . | . . . Machines Sabotaged . | . . . Overloaded Fab Kills . | . . . Hacking | -11 -10 -10 --------- Run | Yrd Mat Min Machines Accessed 1 | . 1 . Terminals 1 | . 1 . Fabricators . | . . . Repair Stations . | . . . Recycling Units . | . . . Scanalyzers . | . . . Garrison Access . | . . . Total Hacks 1 | . 1 . Successful . | . . . Failed 1 | . 1 . Catastrophic . | . . . Database Lockouts . | . . . Manual 1 | . 1 . Terminals 1 | . 1 . Fabricators . | . . . Repair Stations . | . . . Recycling Units . | . . . Scanalyzers . | . . . Garrison Access . | . . . Terminal Hacks . | . . . Fabricator Hacks . | . . . Repair Station Hacks . | . . . Recycling Unit Hacks . | . . . Scanalyzer . | . . . Garrison Access Hacks . | . . . Unauthorized Hacks . | . . . Terminals . | . . . Fabricators . | . . . Repair Stations . | . . . Recycling Units . | . . . Scanalyzers . | . . . Garrison Access . | . . . Data Cores Recovered . | . . . Used . | . . . Hacking Detections 1 | . 1 . Full Trace Events . | . . . Feedback Events . | . . . Feedback Blocked . | . . . Robot Schematics Acquired . | . . . Robots Built . | . . . Authchips . | . . . Time . | . . . Total Robot Build Rating . | . . . Part Schematics Acquired . | . . . Parts Built . | . . . Authchips . | . . . Time . | . . . Total Part Build Rating . | . . . Part Studies Acquired . | . . . Parts Repaired . | . . . Time . | . . . Parts Recycled . | . . . Recycled Matter . | . . . Retrieved Matter . | . . . Retrieved Components . | . . . Parts Scanalyzed . | . . . Part Schematics Acquired . | . . . Parts Damaged . | . . . Bothacking | -11 -10 -10 ------------ Run | Yrd Mat Min Used RIF Installer . | . . . Robots Hacked . | . . . Non-combat . | . . . Combat . | . . . Robot Hacks Applied . | . . . Relay Couplers Released . | . . . Fabnet Peak Effective % . | . . . Robots Rewired . | . . . Allies Hacked . | . . . Hacks Repelled . | . . . Allies | -11 -10 -10 -------- Run | Yrd Mat Min Total Allies . | . . . Largest Group . | . . . Highest-Rated Group . | . . . Highest-Rated Ally . | . . . Total Orders . | . . . Ally Attacks . | . . . Total Damage . | . . . Kills . | . . . Allies Corrupted . | . . . Allies Melted . | . . . Intel | -11 -10 -10 ------- Run | Yrd Mat Min Active Infowar (turns) 254 | 11 103 140 Seismic 169 | 11 103 55 ECM 233 | . 93 140 Robot Analysis Total . | . . . Derelict Logs Recovered 1 | . . 1 Drone Launches . | . . . Drone Recoveries . | . . . Exploration | -11 -10 -10 ------------- Run | Yrd Mat Min Turns Passed 328 | 85 103 140 Spaces Moved 385 | 74 103 208 Core 9 | 8 1 . Treads 2 | 2 . . Legs . | . . . Wheels 91 | 64 27 . Hover 283 | . 75 208 Flight . | . . . Fastest Speed 50 | 50 56 56 Average Speed 65 | 90 68 56 Slowest Speed 200 | 160 200 56 Overloaded Moves . | . . . Propulsion Burnouts . | . . . Robots Hopped . | . . . Potential Cave-ins 2 | . 2 . Cave-ins Triggered . | . . . Exploration Rate (%) 24 | 5 26 41 Regions Visited 2 Branch Regions 1 Pre-discovered Areas . | . . . Known Exits Taken . | . . . Unknown Exits Taken 2 | 1 1 . Scrap Searched 2 | . . 2 Spaces Dug 5 | . 4 1 Terrain Destroyed 86 | . 4 82 Melee 5 | . 4 1 Projectile . | . . . AOE 81 | . . 81 Terrain Rammed . | . . . Walls Destroyed . | . . . Machines Disabled . | . . . Actions | -11 -10 -10 --------- Run | Yrd Mat Min Total 438 | 86 129 223 Wait 1 | . . 1 Move 383 | 73 102 208 Hop . | . . . Pick Up 13 | 5 7 1 Fast Attach 12 | 7 3 2 Attach 3 | . 1 2 Detach 1 | . 1 . Swap . | . . . Drop 12 | . 10 2 Fire 7 | 1 . 6 Melee 6 | . 5 1 Ram . | . . . Kick . | . . . Crush . | . . . Escape Stasis . | . . . Rewire . | . . . Trap . | . . . Miscellaneous . | . . . Route ------- -11/Scrapyard -10/Materials -10/Mines History --------- Turn | Location | Event 24 | -11/Scrapyard | Discovered new exit (range 15) 86 | -11/Scrapyard | Entered Materials 184 | -10/Materials | Discovered new exit (range 11) 189 | -10/Materials | Entered Mines 194 | -10/Mines | Met a Derelict bent on vengeance 198 | -10/Mines | Assembled infested the area 203 | -10/Mines | Assisted by a Guerilla fighting off Assembled 225 | -10/Mines | Received a Rocket Launcher from a helpful Derelict 252 | -10/Mines | Learned 4 Materials zone layouts 267 | -10/Mines | Destroyed 8 combat bots 299 | -10/Mines | Core integrity fell below 50% 322 | -10/Mines | Build established: Mutant 328 | -10/Mines | Core integrity fell below 20% 329 | -10/Mines | Destroyed by D-53 Grenadier with Mini Grenade Launcher Last Messages --------------- 00272_ K-01 Serf system corrupted by crushing effect. 00272_ K-01 Serf knocked back. 00272_ K-01 Serf system corrupted by crushing effect. 00272_ K-01 Serf destroyed. 00274_ Destroyed Asb. Hover Unit. 00295_ U-05 Engineer lays Concrete. 00297_ U-05 Engineer builds a Wall. 00298_ G-47 Trooper destroyed. 00298_ K-01 Serf destroyed. 00298_ G-34 Mercenary destroyed. 00300_ Acquired 13 matter. 00301_ Acquired Imp. Heat Sink. 00303_ Acquired 30 matter. 00304_ Acquired Sml. Matter Pod. 00305_ Acquired 1 matter. 00308_ Acquired 21 matter. 00324_ Imp. Heat Sink destroyed. 00324_ Rocket Launcher destroyed. 00327_ T-07 Excavator destroyed. 00328_ Acquired 10 matter. Map ----- +----------------------------------------------------+ | | | | | | | | | | | | | | | | | | | | | | | | | | | | | ???????????????????????????????????????????????? | | ??????????????###???####???????????????????????? | | ????????????## ##?## ##??#######?????????????? | | ???????????## #?# #### ##????????????? | | ??????????## #?# # #????????????? | | ??????????# #??# ##????????????? | | ??????????# ##?## ##???????????? | | ??????????### ##??# #???????????? | | ???????????# ##### ##???????????? | | ???????????## % # #????????????? | | ????????????# #### ## ####????????????? | | ????????##??# #??# ####@= ##???????????????? | | ??????### ### #??# #??# d####????????????????? | | ??????# ## ##?# #? #???????????????????? | | ????### = = #?## # #???????????????????? | | ###?# = %[ #??#### ####???????????????????? | | ### # [ ##?????# k???????????????????????? | | # ##??????# d???????????????????????? | | ###########???????# ????????????????????????? | | ##?????????????????# ????????????????????????? | | ###??????????????????# ????????????????????????? | | ?????????????????????#?????????????????????????? | | ???????????????????????????????????????????????? | | ???????????????????????????????????????????????? | | ###????????????????????????????????????????????? | | # ##???????????????????????????????????????????? | | #???????????????????????????????????????????? | | #?????????????????????????????????????????? | | ##?????????????????????????????????????????? | | #?????????????????????????????????????????? | | #?????????????????????????????????????????? | | ##?????????????????????????????????????????? | | ##??????????????????????????????????????????? | | # #???????????????????????????????????????????? | | # #???????????????????????????????????????????? | | # #???????????????????????????????????????????? | +----------------------------------------------------+ Best States ------------- Heat Dissipation 39 Energy Generation 10 Energy Capacity 250 Matter Stores 300 Matter Capacity 300 Sight Range 16 Terrain Scan Density 10 ECM Strength 1 Evasion (%) 53 Recoil Reduction 1 Item Schematics ----------------- None Robot Schematics ------------------ None Fabricated ------------ Nothing Repaired ---------- Nothing Studied --------- None Alien Tech Used ----------------- None Achievements -------------- None Challenges ------------ None Game ------ Seed CoilGyrokineticGun Manual? 0 Play Time 00:08:56 Cumulative 85.2 hours Start 2025.11.21 @ 22:53:49 End 2025.11.21 @ 22:59:45 Sessions 1 Manual Loads 0 Difficulty Rogue Special Mode None Game No. 109 Rogue 109 Adventurer 0 Explorer 0 Win Type - Total 0 Types 0/0/0/0/0/0/0/0/0/0 Lore% 24 Gallery% 41 Achievement% 25 Wizard Run 0 Options --------- Layout 0 ASCII 0 Keyboard 0 Movement Mouse Keybinds 0 Fullscreen 1 Font 24/Smallcaps Map View 76x50 Zoom Use 0% Tactical HUD 1 Map Filters NONE Filters NONE Steam 1 RUN: 29207217-1b20-4564-9ff9-f68db799c461